bitfinex/quotes_BTCUSD_20220306
["timestamp","ask_amount","ask_price","bid_price","bid_amount"]
[1646564905303,0.00021696,38300.0,38297.0,0.15]
[1646564905502,0.06940383,38307.0,38297.0,0.2379]
[1646564905698,0.007296,38309.0,38297.0,0.30238137]
[1646564905699,0.390558,38306.0,38297.0,0.30238137]
[1646564905904,0.00021696,38300.0,38297.0,0.30228456]
[1646564906349,0.00021696,38300.0,38297.0,0.23780319]
[1646564906551,0.00021696,38300.0,38298.0,0.14990319]
[1646564906751,0.390558,38308.0,38304.0,0.15934774]
[1646564907653,0.390558,38308.0,38298.0,0.14990319]
[1646564907951,0.390558,38308.0,38299.0,0.18735107]
[1646564908151,0.390558,38308.0,38298.0,0.14990319]
[1646564908352,0.00021697,38305.0,38298.0,0.14990319]
[1646564908554,0.00021697,38305.0,38301.0,0.21908825]
[1646564909153,0.390558,38308.0,38301.0,0.43013024]
[1646564909355,0.00021697,38305.0,38301.0,0.21908825]
[1646564910198,0.00021697,38305.0,38302.0,0.20833233]
[1646564910398,0.390558,38308.0,38302.0,0.20833233]
[1646564910596,0.00021697,38305.0,38302.0,0.20833233]
[1646564911200,0.00021697,38305.0,38299.0,0.14990319]
[1646564911601,0.390558,38308.0,38289.0,0.51214396]
[1646564911796,0.00020841,38304.0,38289.0,0.51214396]
[1646564912196,0.00020841,38304.0,38297.0,0.14990319]
[1646564912399,0.390558,38303.0,38297.0,0.14990319]
[1646564913098,0.00020841,38302.0,38297.0,0.14990319]
[1646564913949,0.390558,38303.0,38298.0,0.15752716]
[1646564914146,0.00020841,38301.0,38298.0,0.15752716]
[1646564915247,0.390558,38303.0,38298.0,0.15752716]
[1646564915647,0.390558,38303.0,38297.0,0.14990319]
[1646564915648,0.00021697,38301.0,38297.0,0.14990319]
[1646564916148,0.00021697,38301.0,38298.0,0.19790466]
[1646564916357,0.0011,38310.0,38298.0,0.19790466]
[1646564916548,0.390558,38309.0,38298.0,0.19790466]
[1646564916749,0.390558,38300.0,38298.0,0.19790466]
[1646564916948,0.00021697,38301.0,38298.0,0.19790466]
[1646564917601,0.1,38308.0,38298.0,0.19790466]
[1646564917801,0.390558,38307.0,38298.0,0.19790466]
[1646564918000,0.00021697,38301.0,38298.0,0.19790466]
[1646564918402,0.00021697,38301.0,38297.0,0.14990319]
[1646564918601,0.00021697,38301.0,38297.0,0.13636519]
[1646564918802,0.0011,38310.0,38299.0,0.13636519]
[1646564919004,0.39142568,38309.0,38299.0,0.20964519]
[1646564919400,0.38642568,38309.0,38299.0,0.20964519]
[1646564920003,0.38642568,38309.0,38299.0,0.39235797]
[1646564920004,0.385558,38309.0,38299.0,0.39235797]
[1646564920202,0.00021697,38306.0,38303.0,0.07041076]
[1646564920603,0.00021697,38306.0,38305.0,0.19695631]
[1646564921252,0.385558,38309.0,38305.0,0.19695631]
[1646564921452,0.00021697,38307.0,38301.0,0.06778068]
[1646564921853,0.00021697,38307.0,38299.0,0.31907797]
[1646564922054,0.00021697,38307.0,38301.0,0.13636519]
[1646564922257,0.38587,38306.0,38301.0,0.21971519]
[1646564922653,0.38608697,38306.0,38301.0,0.21971519]
[1646564922859,0.38608697,38306.0,38301.0,0.08335]
[1646564923058,0.38608697,38306.0,38304.0,0.15738536]
[1646564923655,0.38587,38306.0,38304.0,0.15738536]
[1646564924916,0.38587,38306.0,38304.0,0.29375055]
[1646564925311,0.38587,38306.0,38304.0,0.15738536]
[1646564925809,0.38587,38306.0,38304.0,0.29375055]
[1646564926009,0.38587,38306.0,38304.0,0.13636519]
[1646564926409,0.38587,38306.0,38301.0,0.13636519]
[1646564926610,0.00021922,38307.0,38299.0,0.18371278]
[1646564927011,0.38608922,38307.0,38306.0,0.16773829]
[1646564927212,0.38587,38307.0,38304.0,0.13636519]
[1646564927414,0.00021922,38305.0,38304.0,0.13636519]
[1646564927813,0.38608922,38305.0,38304.0,0.13636519]
[1646564928414,0.38587,38305.0,38304.0,0.13636519]
[1646564928656,0.38587,38305.0,38304.0,0.30609769]
[1646564929360,0.38587,38305.0,38304.0,0.13636519]
[1646564930158,0.00021922,38306.0,38299.0,0.18271278]
[1646564930358,0.00021922,38306.0,38304.0,0.13636519]
[1646564930559,0.38587,38305.0,38304.0,0.13636519]
[1646564930759,0.38587,38305.0,38299.0,0.18271278]
[1646564930962,0.0002074,38307.0,38299.0,0.18271278]
[1646564931160,0.38587,38306.0,38299.0,0.18271278]
[1646564931359,0.38587,38304.0,38299.0,0.18271278]
[1646564931560,0.38587,38306.0,38299.0,0.18271278]
[1646564931760,0.38587,38306.0,38303.0,0.15569104]
[1646564932162,0.0002074,38304.0,38303.0,0.15569104]
[1646564932398,0.3860774,38304.0,38303.0,0.15569104]
[1646564932597,0.0860774,38304.0,38303.0,0.15569104]
[1646564932997,0.0860774,38304.0,38299.0,0.18271278]
[1646564933197,0.086075,38309.0,38299.0,0.18271278]
[1646564933398,0.00019355,38306.0,38301.0,0.13636519]
[1646564933899,0.00019355,38306.0,38299.0,0.18271278]
[1646564933900,0.086075,38305.0,38299.0,0.18271278]
[1646564934504,0.086075,38309.0,38299.0,0.18271278]
[1646564934697,0.086075,38305.0,38299.0,0.18271278]
[1646564934899,0.00020561,38306.0,38299.0,0.18271278]
[1646564935501,0.086075,38305.0,38299.0,0.18271278]
[1646564935702,0.41116788,38304.0,38298.0,0.13636519]
[1646564935900,0.086075,38303.0,38298.0,0.13636519]
[1646564936157,0.00020561,38306.0,38298.0,0.13636519]
[1646564936562,0.086075,38305.0,38294.0,0.002]
[1646564936760,0.41116788,38304.0,38294.0,0.002]
[1646564936959,0.086075,38303.0,38294.0,0.002]
[1646564937163,0.41116788,38302.0,38294.0,0.002]
[1646564937360,0.093278,38301.0,38294.0,0.002]
[1646564937560,0.093278,38301.0,38281.0,0.2005]
[1646564937561,0.02611,38299.0,38281.0,0.2005]
[1646564937760,0.093374,38298.0,38286.0,0.06375584]
[1646564937960,0.41116788,38297.0,38290.0,0.20766791]
[1646564938159,0.086075,38296.0,38290.0,0.20766791]
[1646564938363,0.086075,38294.0,38290.0,0.20766791]
[1646564939164,0.1,38297.0,38285.0,0.05458528]
[1646564939165,0.41116788,38293.0,38285.0,0.05458528]
[1646564939363,0.12611,38297.0,38285.0,0.19095047]
[1646564939364,0.1,38297.0,38285.0,0.19095047]
[1646564939999,0.086075,38296.0,38285.0,0.19095047]
[1646564940201,0.13972995,38301.0,38289.0,0.20047612]
[1646564940403,0.086075,38300.0,38292.0,0.17051295]
[1646564941102,0.086075,38300.0,38289.0,0.20047612]
[1646564941800,0.007108,38299.0,38289.0,0.20047612]
[1646564942000,0.086075,38298.0,38289.0,0.20047612]
[1646564942200,0.086075,38298.0,38293.0,0.16442559]
[1646564943401,0.086075,38298.0,38286.0,0.002]
[1646564943648,0.02611,38297.0,38279.0,1.14073307]
[1646564943848,0.02611,38297.0,38279.0,0.72956519]
[1646564943849,0.112185,38296.0,38279.0,0.72956519]
[1646564944048,0.112185,38296.0,38279.0,1.14073307]
[1646564944449,0.086075,38296.0,38286.0,0.16149197]
[1646564944651,0.086075,38296.0,38284.0,0.21792835]
[1646564944854,0.086075,38296.0,38279.0,0.13636519]
[1646564945061,0.02611,38294.0,38278.0,0.003]
[1646564945256,0.112185,38293.0,38278.0,0.003]
[1646564945454,0.112185,38293.0,38276.0,0.13636519]
[1646564945654,0.02611,38292.0,38276.0,0.13636519]
[1646564945854,0.112185,38291.0,38276.0,0.13636519]
[1646564946054,0.086075,38291.0,38282.0,0.17137258]
[1646564947155,0.08590227,38291.0,38282.0,0.17137258]
[1646564948201,0.08590227,38291.0,38282.0,0.23740207]
[1646564948401,0.08590227,38291.0,38282.0,0.17137258]
[1646564949402,0.007203,38290.0,38282.0,0.17137258]
[1646564949604,0.08588,38289.0,38282.0,0.17137258]
[1646564949904,0.11199,38289.0,38273.0,0.33286519]
[1646564950108,0.177352,38289.0,38273.0,0.1965]
[1646564950805,0.177352,38289.0,38278.0,0.19317229]
[1646564950806,0.08588,38287.0,38278.0,0.19317229]
[1646564951853,0.08588,38287.0,38284.0,0.20429109]
[1646564952452,0.08588,38287.0,38276.0,0.06194211]
[1646564952953,0.08588,38287.0,38279.0,0.16385452]
[1646564954155,0.08588,38287.0,38284.0,0.18668437]
[1646564954755,0.08578827,38287.0,38284.0,0.18668437]
[1646564955601,0.07361639,38287.0,38284.0,0.18668437]
[1646564957909,0.07361639,38287.0,38285.0,0.19508262]
[1646564958105,0.07361639,38287.0,38284.0,0.23969844]
[1646564958308,0.1,38290.0,38284.0,0.23969844]
[1646564958508,0.1,38290.0,38284.0,0.37606363]
[1646564958762,0.1,38290.0,38286.0,0.13636519]
[1646564959265,0.1,38290.0,38287.0,0.17454202]
[1646564959660,0.095,38290.0,38287.0,0.17454202]
[1646564965511,0.41116788,38289.0,38284.0,0.23969844]
[1646564965715,0.095,38290.0,38286.0,0.13636519]
[1646564965909,0.095,38290.0,38284.0,0.23969844]
[1646564966162,0.41116788,38289.0,38284.0,0.18668437]
[1646564966363,0.095,38290.0,38286.0,0.18697748]
[1646564966563,0.095,38290.0,38284.0,0.18668437]
[1646564966764,0.41116788,38289.0,38284.0,0.18668437]
[1646564967065,0.095,38290.0,38284.0,0.24756326]
[1646564967262,0.41116788,38289.0,38284.0,0.24756326]
[1646564967464,0.41116788,38289.0,38285.0,0.18839241]
[1646564967664,0.095,38290.0,38285.0,0.18839241]
[1646564967863,0.095,38290.0,38286.0,0.13636519]
[1646564968864,0.095,38290.0,38285.0,0.18839241]
[1646564970512,0.095,38290.0,38286.0,0.13636519]
[1646564971111,0.095,38290.0,38289.0,0.13636519]
[1646564971316,0.095,38290.0,38289.0,0.52683419]
[1646564971911,0.095,38290.0,38289.0,0.13636519]
[1646564972312,0.095,38290.0,38289.0,0.16247519]
[1646564972512,0.095,38290.0,38289.0,0.13636519]
[1646564972922,0.095,38290.0,38289.0,0.52683419]
[1646564973114,0.095,38290.0,38289.0,0.13636519]
[1646564977163,0.095,38290.0,38289.0,0.52683419]
[1646564977402,0.095,38290.0,38289.0,0.13636519]
[1646564978207,0.095,38290.0,38289.0,0.52683419]
[1646564978605,0.095,38290.0,38289.0,0.13636519]
[1646564980106,0.095,38290.0,38289.0,0.52683419]
[1646564980306,0.095,38290.0,38289.0,0.13636519]
[1646564980707,0.095,38290.0,38289.0,0.52683419]
[1646564980907,0.095,38290.0,38289.0,0.16247519]
[1646564981156,0.095,38290.0,38289.0,0.55294419]
[1646564981363,0.095,38290.0,38289.0,0.16247519]
[1646564981759,0.27749385,38306.0,38294.0,0.23209994]
[1646564981958,0.073615,38305.0,38294.0,0.23209994]
[1646564982758,0.073615,38305.0,38294.0,0.17726198]
[1646564984258,0.073615,38305.0,38297.0,0.16167712]
[1646564985306,0.11495154,38301.0,38297.0,0.16167712]
[1646564985509,0.11495154,38298.0,38294.0,0.17726198]
[1646564985707,0.11495154,38295.0,38294.0,0.17726198]
[1646564986007,0.11495154,38295.0,38290.0,1.33636519]
[1646564986207,0.11495154,38291.0,38290.0,1.33636519]
[1646564986410,0.11495154,38291.0,38290.0,1.33836519]
[1646564987009,0.11495154,38291.0,38290.0,1.50262587]
[1646564987809,0.11495154,38291.0,38290.0,1.50062587]
[1646564988854,0.11495154,38291.0,38290.0,1.36426068]
[1646564989454,0.11495154,38291.0,38290.0,1.50062587]
[1646564993504,0.11495154,38291.0,38290.0,1.33636519]
[1646564994707,0.11495154,38291.0,38290.0,1.2]
[1646564996654,0.11495154,38291.0,38289.0,0.13636519]
[1646564996854,0.18856654,38290.0,38286.0,0.13636519]
[1646564997054,0.18856654,38287.0,38286.0,0.13636519]
[1646564997353,0.18856654,38287.0,38285.0,0.010333]
[1646564997553,0.43765238,38297.0,38286.0,0.13636519]
[1646564997554,0.073615,38296.0,38286.0,0.13636519]
[1646564997756,0.073615,38291.0,38287.0,0.16295015]
[1646564997956,0.073615,38287.0,38286.0,0.13636519]
[1646564998160,0.11495154,38287.0,38286.0,0.13636519]
[1646564998659,0.18856654,38287.0,38286.0,0.13636519]
[1646564999757,0.18856654,38287.0,38285.0,0.14369819]
[1646565000016,0.11495154,38286.0,38285.0,0.14369819]
[1646565000219,0.11495154,38286.0,38285.0,0.13636519]
[1646565000417,0.18856654,38286.0,38285.0,0.13636519]
[1646565001316,0.11495154,38286.0,38284.0,0.13636519]
[1646565001516,0.11495154,38285.0,38281.0,0.20187087]
[1646565001720,0.02611,38296.0,38281.0,0.20187087]
[1646565001919,0.073615,38295.0,38281.0,0.20087087]
[1646565002115,0.41154238,38294.0,38281.0,0.20087087]
[1646565002318,0.073615,38293.0,38281.0,0.20087087]
[1646565002516,0.41154238,38292.0,38281.0,0.40476033]
[1646565002716,0.073615,38291.0,38281.0,0.40476033]
[1646565002919,0.41154238,38290.0,38281.0,0.40476033]
[1646565003117,0.073615,38289.0,38281.0,0.40476033]
[1646565003319,0.073615,38287.0,38281.0,0.40476033]
[1646565004960,0.073615,38286.0,38281.0,0.40476033]
[1646565005157,0.099725,38296.0,38281.0,0.40476033]
[1646565005360,0.073615,38294.0,38281.0,0.40465936]
[1646565005561,0.073615,38292.0,38281.0,0.39465936]
[1646565005758,0.41154238,38291.0,38281.0,0.39465936]
[1646565005959,0.073615,38290.0,38281.0,0.39465936]
[1646565006158,0.073615,38290.0,38278.0,0.13636519]
[1646565006159,0.073615,38288.0,38278.0,0.13636519]
[1646565006360,0.41154238,38287.0,38276.0,0.33776519]
[1646565006561,0.073615,38286.0,38278.0,0.001]
[1646565006761,0.073615,38284.0,38278.0,0.001]
[1646565006961,0.073615,38282.0,38278.0,0.001]
[1646565007157,1.08485346,38290.0,38278.0,0.001]
[1646565007405,0.6456,38291.0,38278.0,0.001]
[1646565007406,0.13843064,38289.0,38278.0,0.001]
[1646565007906,0.073615,38289.0,38277.0,0.16574548]
[1646565008404,0.073615,38289.0,38278.0,0.1563159]
[1646565009003,0.073615,38289.0,38277.0,0.16574548]
[1646565009511,0.073615,38289.0,38271.0,0.2064]
[1646565009512,0.979135,38289.0,38271.0,0.2064]
[1646565009706,0.979135,38289.0,38266.0,1.1093]
[1646565009707,0.02611,38285.0,38266.0,0.6355]
[1646565009908,0.098287,38282.0,38266.0,0.6355]
[1646565010106,0.072177,38282.0,38271.0,0.18526592]
[1646565010405,0.072177,38282.0,38270.0,0.19386203]
[1646565010806,0.072177,38282.0,38265.0,0.002]
[1646565011012,0.7953,38281.0,38265.0,0.002]
[1646565011269,0.967477,38280.0,38265.0,0.002]
[1646565011774,0.01363481,38274.0,38265.0,0.002]
[1646565012074,0.7953,38268.0,38265.0,0.002]
[1646565012269,0.00026164,38266.0,38265.0,0.002]
[1646565012469,0.48371938,38266.0,38265.0,0.002]
[1646565012673,0.59430845,38266.0,38265.0,0.002]
[1646565012869,0.69430845,38266.0,38265.0,0.002]
[1646565013068,1.61312935,38266.0,38265.0,0.002]
[1646565013267,1.61310619,38266.0,38265.0,0.002]
[1646565013768,1.61310619,38266.0,38265.0,0.0001]
[1646565013970,0.7953,38265.0,38263.0,0.001]
[1646565014169,1.38897092,38264.0,38263.0,0.001]
[1646565014573,0.81719182,38264.0,38263.0,0.001]
[1646565014771,1.51117509,38264.0,38263.0,0.001]
[1646565015009,1.38791589,38264.0,38263.0,0.001]
[1646565015208,0.71613679,38264.0,38263.0,0.001]
[1646565015411,0.70250198,38264.0,38263.0,0.001]
[1646565015708,0.57898108,38264.0,38263.0,0.001]
[1646565017709,1.37428108,38264.0,38263.0,0.001]
[1646565018011,1.49780198,38264.0,38263.0,0.001]
[1646565018409,1.53781922,38264.0,38263.0,0.001]
[1646565019759,1.53755752,38264.0,38263.0,0.001]
[1646565020055,1.53781927,38264.0,38263.0,0.0027172]
[1646565021259,1.53781927,38264.0,38263.0,0.6747254]
[1646565031609,1.53781927,38264.0,38263.0,0.64994642]
[1646565033411,1.53781927,38264.0,38263.0,0.59686878]
[1646565034654,1.55148062,38264.0,38263.0,0.59686878]
[1646565035555,1.55148062,38264.0,38263.0,0.20433778]
[1646565035955,1.55148062,38264.0,38261.0,0.001]
[1646565036154,0.87634757,38262.0,38261.0,0.001]
[1646565036356,0.97634757,38262.0,38261.0,0.001]
[1646565036559,0.97634757,38262.0,38257.0,0.002]
[1646565036560,0.7953,38260.0,38257.0,0.002]
[1646565036857,0.962451,38259.0,38257.0,0.002]
[1646565037057,1.37251954,38259.0,38257.0,0.002]
[1646565037508,1.49604044,38259.0,38257.0,0.002]
[1646565037917,1.55225922,38258.0,38257.0,0.001]
[1646565038110,0.7953,38254.0,38251.0,0.002]
[1646565038314,0.862451,38253.0,38251.0,0.002]
[1646565038509,1.37278136,38253.0,38251.0,0.002]
[1646565038708,0.067151,38252.0,38250.0,0.001]
[1646565038907,1.28641617,38251.0,38250.0,0.001]
[1646565039308,1.50993707,38251.0,38250.0,0.001]
[1646565039708,1.56000707,38251.0,38250.0,0.001]
[1646565039909,0.75107226,38251.0,38250.0,0.001]
[1646565040110,0.76470707,38251.0,38250.0,0.001]
[1646565040309,0.64118617,38251.0,38250.0,0.001]
[1646565042176,1.43648617,38251.0,38250.0,0.001]
[1646565042375,1.56000707,38251.0,38250.0,0.001]
[1646565043777,0.76470707,38251.0,38250.0,0.001]
[1646565044176,0.00026182,38251.0,38245.0,0.001]
[1646565044376,0.17105302,38253.0,38245.0,0.001]
[1646565044776,0.7953,38252.0,38245.0,0.001]
[1646565045815,0.7953,38251.0,38245.0,0.001]
[1646565046215,0.8953,38250.0,38245.0,0.001]
[1646565046420,1.20155914,38249.0,38245.0,0.001]
[1646565046616,1.21465037,38249.0,38245.0,0.001]
[1646565046816,1.31465037,38249.0,38245.0,0.001]
[1646565047517,1.30155914,38249.0,38245.0,0.001]
[1646565047917,1.30182102,38249.0,38245.0,0.001]
[1646565050059,1.37649102,38249.0,38245.0,0.001]
[1646565050459,1.30182102,38248.0,38245.0,0.001]
[1646565051062,0.7953,38247.0,38245.0,0.001]
[1646565051261,1.30182102,38246.0,38245.0,0.001]
[1646565053914,1.30182102,38246.0,38244.0,0.002]
[1646565054115,1.20182102,38245.0,38244.0,0.002]
[1646565054314,1.30182102,38245.0,38244.0,0.002]
[1646565057061,0.065451,38244.0,38230.0,0.15]
[1646565057263,1.20855914,38247.0,38233.0,0.07570589]
[1646565057464,1.20855914,38247.0,38233.0,0.25181589]
[1646565057465,0.5,38246.0,38233.0,0.25181589]
[1646565057661,0.507,38247.0,38244.0,0.15]
[1646565057662,0.007,38247.0,38244.0,0.15]
[1646565057862,0.007,38247.0,38235.0,0.17611]
[1646565058061,0.40625914,38254.0,38246.0,0.15]
[1646565058262,0.09827332,38255.0,38246.0,0.15]
[1646565058667,0.41125914,38258.0,38246.0,0.15]
[1646565058861,0.5,38257.0,38246.0,0.15]
[1646565059066,0.5,38257.0,38245.0,0.07496257]
[1646565059067,0.5,38257.0,38251.0,0.15]
[1646565059266,0.005,38258.0,38251.0,0.15]
[1646565059267,0.13494116,38258.0,38251.0,0.15]
[1646565059464,0.005,38258.0,38245.0,0.10107257]
[1646565059664,0.005,38258.0,38255.0,0.15]
[1646565059925,0.5,38263.0,38257.0,0.15]
[1646565060225,0.13007246,38262.0,38257.0,0.05923086]
[1646565060428,0.40625914,38270.0,38261.0,0.15]
[1646565060429,0.08007246,38268.0,38261.0,0.15]
[1646565060623,0.08007246,38268.0,38258.0,0.21103543]
[1646565060624,0.03836926,38273.0,38258.0,0.23714543]
[1646565060828,0.5,38271.0,38269.0,0.15]
[1646565061027,0.5,38270.0,38269.0,0.15]
[1646565061231,0.40473168,38278.0,38269.0,0.15]
[1646565061423,0.13077,38281.0,38270.0,0.18116533]
[1646565061626,0.40473168,38280.0,38270.0,0.18116533]
[1646565061823,0.40473168,38280.0,38270.0,0.33116533]
[1646565063689,0.40573168,38285.0,38270.0,0.33116533]
[1646565063893,0.40573168,38285.0,38270.0,0.48116533]
[1646565064089,0.40573168,38285.0,38271.0,0.01306]
[1646565064689,0.01,38272.0,38271.0,0.01306]
[1646565064892,0.01,38272.0,38270.0,0.54455533]
[1646565065093,0.01,38272.0,38270.0,0.50727533]
[1646565065596,0.40573168,38285.0,38280.0,0.06278761]
[1646565065597,0.001,38285.0,38280.0,0.06278761]
[1646565065793,0.001,38285.0,38284.0,0.15]
[1646565065990,0.11568972,38285.0,38284.0,0.15]
[1646565067411,0.11568972,38285.0,38284.0,0.35898647]
[1646565067612,0.11568972,38285.0,38284.0,0.15]
[1646565069814,0.5204214,38285.0,38279.0,0.15]
[1646565070015,0.11468972,38281.0,38276.0,0.15]
[1646565070215,0.40473168,38280.0,38276.0,0.15]
[1646565070413,0.40473168,38283.0,38276.0,0.15]
[1646565070617,0.1,38279.0,38276.0,0.15]
[1646565070815,0.00026167,38277.0,38276.0,0.15]
[1646565071270,0.10026167,38277.0,38276.0,0.15]
[1646565071472,0.50499335,38277.0,38268.0,0.15436191]
[1646565071667,0.50473168,38277.0,38276.0,0.15]
[1646565071965,0.50499334,38277.0,38276.0,0.15]
[1646565073367,0.50499334,38277.0,38269.0,0.15]
[1646565073567,0.50473168,38277.0,38266.0,0.3694564]
[1646565074467,0.50473168,38277.0,38266.0,0.15]
[1646565074912,0.50473168,38277.0,38267.0,0.33987969]
[1646565075112,0.50473168,38277.0,38276.0,0.15]
[1646565075313,0.09985166,38277.0,38276.0,0.15]
[1646565075716,0.40499334,38277.0,38276.0,0.15]
[1646565075913,0.00026166,38277.0,38276.0,0.15]
[1646565077515,0.00026166,38277.0,38270.0,0.20049113]
[1646565077715,0.00026166,38277.0,38261.0,0.41779168]
[1646565077716,0.59849133,38277.0,38268.0,0.15]
[1646565077915,0.59849133,38277.0,38261.0,0.41779168]
[1646565078117,0.065391,38274.0,38267.0,0.15]
[1646565078418,0.4023983,38273.0,38267.0,0.15]
[1646565078673,0.00026172,38269.0,38267.0,0.15]
[1646565078873,0.00026172,38268.0,38267.0,0.15]
[1646565080574,0.00026172,38268.0,38267.0,0.34400789]
[1646565080978,0.00026172,38268.0,38267.0,0.15]
[1646565083536,0.165396,38271.0,38267.0,0.15]
[1646565083734,0.065396,38271.0,38267.0,0.15]
[1646565084338,0.22752397,38273.0,38267.0,0.15]
[1646565084533,0.22752397,38273.0,38267.0,0.14]
[1646565084735,0.1,38273.0,38267.0,0.14]
[1646565084934,0.22752397,38273.0,38265.0,0.07290805]
[1646565085140,0.12752397,38276.0,38272.0,0.19589387]
[1646565085336,0.11468972,38273.0,38272.0,0.19589387]
[1646565085541,0.04065487,38285.0,38272.0,0.19589387]
[1646565085542,0.12752397,38281.0,38272.0,0.33589387]
[1646565085739,0.12752397,38282.0,38280.0,0.14]
[1646565086036,0.001,38285.0,38280.0,0.14]
[1646565086469,0.001,38285.0,38284.0,0.14]
[1646565086667,0.001,38288.0,38284.0,0.14]
[1646565086871,0.11468972,38285.0,38279.0,0.24711]
[1646565087065,0.0024,38290.0,38284.0,0.14]
[1646565087268,0.10799289,38286.0,38280.0,0.40473168]
[1646565087465,0.0024,38290.0,38285.0,0.14]
[1646565087666,0.11468972,38286.0,38285.0,0.14]
[1646565087865,0.0024,38290.0,38285.0,0.14]
[1646565088064,0.10799289,38286.0,38282.0,0.21856795]
[1646565088266,0.0024,38290.0,38285.0,0.14]
[1646565088464,0.11468972,38286.0,38285.0,0.14]
[1646565089064,0.14,38286.0,38285.0,0.14]
[1646565094768,0.13722479,38286.0,38285.0,0.14]
[1646565097919,0.13722479,38286.0,38285.0,0.31169223]
[1646565105241,0.13722479,38286.0,38285.0,0.20062]
[1646565106232,0.13722479,38286.0,38285.0,0.37291502]
[1646565106434,0.13722479,38286.0,38285.0,0.31229502]
[1646565106634,0.13722479,38286.0,38285.0,0.14]
[1646565108040,0.13722479,38286.0,38283.0,0.15]
[1646565108041,0.53785531,38286.0,38283.0,0.14]
[1646565108236,0.1,38291.0,38283.0,0.14]
[1646565108435,0.40063052,38286.0,38279.0,0.14]
[1646565108695,0.40063052,38286.0,38277.0,0.14]
[1646565108696,0.1,38285.0,38277.0,0.14]
[1646565108895,0.1,38285.0,38279.0,0.14]
[1646565109093,0.1,38285.0,38277.0,0.14]
[1646565109293,0.1,38285.0,38274.0,0.37111921]
[1646565109593,0.1,38285.0,38283.0,0.04]
[1646565109994,0.40063052,38284.0,38283.0,0.04]
[1646565110295,0.10026169,38284.0,38283.0,0.04]
[1646565110502,1.29619221,38284.0,38283.0,0.04]
[1646565110893,1.40888397,38284.0,38283.0,0.04]
[1646565111294,0.7953,38282.0,38273.0,0.14]
[1646565111493,0.46441536,38281.0,38273.0,0.14]
[1646565111693,0.46441536,38281.0,38269.0,0.15168125]
[1646565111694,0.56441536,38281.0,38269.0,0.15168125]
[1646565111898,0.67710712,38281.0,38274.0,0.14]
[1646565112095,0.67710712,38281.0,38274.0,0.05747535]
[1646565112096,0.21269176,38281.0,38274.0,0.05747535]
[1646565112294,0.1,38281.0,38278.0,0.14]
[1646565112716,0.1,38289.0,38278.0,0.14]
[1646565112914,0.42403136,38288.0,38278.0,0.14]
[1646565113219,0.165368,38287.0,38278.0,0.14]
[1646565113412,0.39903136,38286.0,38278.0,0.14]
[1646565113713,0.1,38285.0,38279.0,0.15673226]
[1646565113912,0.39903136,38284.0,38279.0,0.15673226]
[1646565114312,0.1,38283.0,38279.0,0.15673226]
[1646565114913,0.1,38288.0,38284.0,0.20975006]
[1646565115113,0.20831524,38285.0,38282.0,0.14]
[1646565115312,0.39903136,38287.0,38282.0,0.14]
[1646565115714,0.1,38286.0,38282.0,0.14]
[1646565115916,0.39703136,38285.0,38282.0,0.14]
[1646565117566,0.39703136,38285.0,38280.0,0.14]
[1646565118471,0.39703136,38285.0,38283.0,0.16241127]
[1646565118665,0.39703136,38285.0,38280.0,0.14]
[1646565119666,0.39703136,38285.0,38281.0,0.17679488]
[1646565120529,0.39703136,38285.0,38284.0,0.00107959]
[1646565120829,0.6073466,38285.0,38284.0,0.00107959]
[1646565121227,0.20831524,38285.0,38284.0,0.00107959]
[1646565122030,0.10831524,38285.0,38284.0,0.00107959]
[1646565122228,0.5073466,38285.0,38284.0,0.00107959]
[1646565122628,0.6073466,38285.0,38284.0,0.00107959]
[1646565123770,0.54360252,38285.0,38284.0,0.00107959]
[1646565124162,0.54978763,38285.0,38284.0,0.00107959]
[1646565126065,0.51829486,38285.0,38284.0,0.00107959]
[1646565126267,0.50547811,38285.0,38284.0,0.00107959]
[1646565126763,0.49123811,38285.0,38284.0,0.00107959]
[1646565128719,0.39123811,38285.0,38284.0,0.00107959]
[1646565128925,0.00026164,38285.0,38284.0,0.00107959]
[1646565130221,0.10026164,38285.0,38284.0,0.00107959]
[1646565130821,0.15384979,38285.0,38284.0,0.00107959]
[1646565131571,0.54981503,38285.0,38284.0,0.00107959]
[1646565131767,1.02932906,38285.0,38284.0,0.00107959]
[1646565132068,0.54981503,38285.0,38284.0,0.00107959]
[1646565132266,0.66250679,38285.0,38284.0,0.00107959]
[1646565132469,1.02931124,38285.0,38284.0,0.00107959]
[1646565132666,1.02931124,38285.0,38284.0,0.16220339]
[1646565132866,1.142003,38285.0,38284.0,0.16220339]
[1646565133068,1.02931124,38285.0,38284.0,0.16220339]
[1646565133267,1.142003,38285.0,38284.0,0.00107959]
[1646565133667,1.0949179,38285.0,38284.0,0.00107959]
[1646565134667,0.98222614,38285.0,38284.0,0.00107959]
[1646565134912,1.0949179,38285.0,38284.0,0.00107959]
[1646565135111,0.98222614,38285.0,38284.0,0.00107959]
[1646565135311,0.61542169,38285.0,38284.0,0.00078231]
[1646565135513,0.50272993,38285.0,38284.0,0.00078231]
[1646565136111,0.48991347,38285.0,38284.0,0.00078231]
[1646565136914,0.09394823,38285.0,38284.0,0.00078231]
[1646565137118,0.09394823,38285.0,38284.0,0.09565231]
[1646565137119,0.00026159,38285.0,38284.0,0.09565231]
[1646565137315,0.11269176,38286.0,38284.0,0.23565231]
[1646565137513,0.47949621,38290.0,38284.0,0.23565231]
[1646565137714,0.06016315,38286.0,38284.0,0.09565231]
[1646565137915,0.47949621,38290.0,38285.0,0.14]
[1646565138117,0.06016315,38286.0,38285.0,0.34951487]
[1646565138764,0.06016315,38286.0,38285.0,0.20951487]
[1646565139160,0.06016315,38286.0,38285.0,0.53283547]
[1646565139961,0.05516315,38286.0,38285.0,0.53283547]
[1646565141362,0.02061403,38286.0,38285.0,0.53283547]
[1646565145316,0.47949621,38292.0,38291.0,0.21216699]
[1646565145519,0.61949621,38292.0,38291.0,0.21216699]
[1646565145720,0.14,38292.0,38291.0,0.21216699]
[1646565146172,0.09,38292.0,38291.0,0.21216699]